[Event "Early-Titled-Tuesday-Blitz-May-14-2024"]
[Site "Chess.com"]
[Date "2024.05.14"]
[Round "4"]
[White "TheoSlade"]
[Black "Fradi82"]
[Result "1-0"]
[WhiteElo "2461"]
[BlackElo "2192"]
[TimeControl "180+1"]
[EndTime "8:41:45 PDT"]
[Termination "TheoSlade won by resignation"]

1. d4 {[%clk 0:03:00.9]} 1... d5 {[%clk 0:02:59.6]} 2. c4 {[%clk 0:03:01.1]}
2... c6 {[%clk 0:02:59]} 3. cxd5 {[%clk 0:03:01.1]} 3... cxd5 {[%clk 0:02:59.9]}
4. Bf4 {[%clk 0:03:01.3]} 4... Nf6 {[%clk 0:02:59.5]} 5. e3 {[%clk 0:03:01.9]}
5... Nc6 {[%clk 0:02:59.9]} 6. Nc3 {[%clk 0:03:01.9]} 6... Ne4 {[%clk
0:03:00.2]} 7. Bd3 {[%clk 0:02:58.7]} 7... g5 {[%clk 0:02:58.6]} 8. Bxe4 {[%clk
0:02:51.4]} 8... gxf4 {[%clk 0:02:58.4]} 9. Bxd5 {[%clk 0:02:51.7]} 9... fxe3
{[%clk 0:02:49.1]} 10. fxe3 {[%clk 0:02:47.3]} 10... e6 {[%clk 0:02:48.5]} 11.
Bxc6+ {[%clk 0:02:40.5]} 11... bxc6 {[%clk 0:02:47.9]} 12. Nf3 {[%clk 0:02:41]}
12... Ba6 {[%clk 0:02:46.8]} 13. Qa4 {[%clk 0:02:38]} 13... Qb6 {[%clk 0:02:47]}
14. Ne5 {[%clk 0:02:21.6]} 14... Bb5 {[%clk 0:02:35]} 15. Nxb5 {[%clk
0:02:16.6]} 15... cxb5 {[%clk 0:02:35.9]} 16. Qc2 {[%clk 0:02:06.2]} 16... Bb4+
{[%clk 0:02:35.4]} 17. Kf2 {[%clk 0:02:04.8]} 17... f6 {[%clk 0:02:28.1]} 18.
Qc6+ {[%clk 0:01:58.9]} 18... Qxc6 {[%clk 0:02:26.1]} 19. Nxc6 {[%clk
0:01:59.8]} 19... Bd6 {[%clk 0:02:26.3]} 20. Rac1 {[%clk 0:01:56.7]} 20... a5
{[%clk 0:02:08.6]} 21. Nxa5 {[%clk 0:01:52.7]} 21... Kd7 {[%clk 0:01:58.5]} 22.
Nb3 {[%clk 0:01:33.1]} 22... Rxa2 {[%clk 0:01:57.4]} 23. Rc2 {[%clk 0:01:32.7]}
23... Ba3 {[%clk 0:01:46.5]} 24. Nc5+ {[%clk 0:01:15.6]} 24... Ke7 {[%clk
0:01:46.4]} 25. Nd3 {[%clk 0:01:11.3]} 25... Bd6 {[%clk 0:01:25.1]} 26. Rc6
{[%clk 0:01:09.5]} 26... Kd7 {[%clk 0:01:14]} 27. Rb6 {[%clk 0:01:08]} 27... Rc8
{[%clk 0:01:06.4]} 28. Rxb5 {[%clk 0:01:03.4]} 28... Rc2+ {[%clk 0:01:05.8]} 29.
Kf3 {[%clk 0:01:04.1]} 29... Rd2 {[%clk 0:00:55.1]} 30. Nc5+ {[%clk 0:01:04.1]}
30... Bxc5 {[%clk 0:00:53.9]} 31. dxc5 {[%clk 0:01:00.9]} 31... Raxb2 {[%clk
0:00:49]} 32. Rxb2 {[%clk 0:00:59.8]} 32... Rxb2 {[%clk 0:00:49.9]} 33. Rd1+
{[%clk 0:00:58.8]} 33... Kc6 {[%clk 0:00:42.9]} 34. Rd6+ {[%clk 0:00:59.1]}
34... Kxc5 {[%clk 0:00:43.1]} 35. Rxe6 {[%clk 0:00:59.7]} 35... Rb7 {[%clk
0:00:37.6]} 36. Rxf6 {[%clk 0:00:59.6]} 36... Kd5 {[%clk 0:00:38.3]} 37. Rf5+
{[%clk 0:00:56.9]} 37... Ke6 {[%clk 0:00:38.5]} 38. Ra5 {[%clk 0:00:57.7]} 38...
Kf6 {[%clk 0:00:38.3]} 39. g4 {[%clk 0:00:56.4]} 39... Rb1 {[%clk 0:00:34.4]}
40. Ra6+ {[%clk 0:00:53.6]} 40... Kg7 {[%clk 0:00:34.3]} 41. h4 {[%clk
0:00:52.4]} 41... Rf1+ {[%clk 0:00:34.4]} 42. Ke4 {[%clk 0:00:52.5]} 42... Rh1
{[%clk 0:00:34.3]} 43. h5 {[%clk 0:00:52.9]} 43... Rg1 {[%clk 0:00:34.4]} 44.
Kf5 {[%clk 0:00:53]} 44... Rf1+ {[%clk 0:00:34.4]} 45. Kg5 {[%clk 0:00:52.1]}
45... Rf2 {[%clk 0:00:34]} 46. Ra7+ {[%clk 0:00:51.9]} 46... Kg8 {[%clk
0:00:33.4]} 47. e4 {[%clk 0:00:50.6]} 47... Rb2 {[%clk 0:00:29.6]} 48. e5 {[%clk
0:00:50.4]} 48... Rb5 {[%clk 0:00:29.7]} 49. Kf6 {[%clk 0:00:49.5]} 49... h6
{[%clk 0:00:25.3]} 50. Ra8+ {[%clk 0:00:48.6]} 50... Kh7 {[%clk 0:00:25.5]} 51.
Ra7+ {[%clk 0:00:49.3]} 51... Kg8 {[%clk 0:00:25.5]} 52. e6 {[%clk 0:00:47.4]}
52... Rb6 {[%clk 0:00:21.9]} 53. Ra8+ {[%clk 0:00:39.8]} 53... Kh7 {[%clk
0:00:20.6]} 54. Kf7 {[%clk 0:00:40.5]} 54... Rb7+ {[%clk 0:00:19.5]} 55. e7
{[%clk 0:00:40.5]} 55... Rc7 {[%clk 0:00:19.7]} 56. Ke6 {[%clk 0:00:35.1]} 56...
Rc6+ {[%clk 0:00:12.3]} 57. Kd7 {[%clk 0:00:34.4]} 57... Rc2 {[%clk 0:00:04.2]}
58. e8=Q {[%clk 0:00:32.5]} 58... Rd2+ {[%clk 0:00:04.6]} 59. Ke6 {[%clk
0:00:31.6]} 59... Re2+ {[%clk 0:00:04.8]} 60. Kf5 {[%clk 0:00:31.7]} 60... Rf2+
{[%clk 0:00:03.8]} 61. Ke4 {[%clk 0:00:31.6]} 61... Re2+ {[%clk 0:00:03.7]} 62.
Kf3 {[%clk 0:00:32.3]} 62... Rxe8 {[%clk 0:00:03.2]} 63. Rxe8 {[%clk 0:00:33.2]}
63... Kg7 {[%clk 0:00:03.9]} 64. Re6 {[%clk 0:00:32.4]} 64... Kh7 {[%clk
0:00:04.8]} 65. Rg6 {[%clk 0:00:31.8]} 65... Kh8 {[%clk 0:00:04.6]} 66. Rxh6+
{[%clk 0:00:32.7]} 66... Kg7 {[%clk 0:00:05.4]} 67. Rg6+ {[%clk 0:00:33.3]}
67... Kh7 {[%clk 0:00:06.3]} 68. g5 {[%clk 0:00:32.6]} 68... Kh8 {[%clk
0:00:07.2]} 69. Ra6 {[%clk 0:00:31.3]} 69... Kh7 {[%clk 0:00:08.1]} 70. Ra7+
{[%clk 0:00:31.4]} 70... Kh8 {[%clk 0:00:09]} 71. g6 {[%clk 0:00:32]} 1-0

[Event "Early-Titled-Tuesday-Blitz-May-14-2024"]
[Site "Chess.com"]
[Date "2024.05.14"]
[Round "4"]
[White "pirulillo"]
[Black "ZeZacarias"]
[Result "0-1"]
[WhiteElo "2418"]
[BlackElo "2050"]
[TimeControl "180+1"]
[EndTime "8:41:46 PDT"]
[Termination "ZeZacarias won by resignation"]

1. e4 {[%clk 0:03:00.9]} 1... e6 {[%clk 0:02:52]} 2. d3 {[%clk 0:02:58.8]} 2...
c5 {[%clk 0:02:51.6]} 3. Nf3 {[%clk 0:02:57.3]} 3... Nc6 {[%clk 0:02:52.2]} 4.
g3 {[%clk 0:02:54.1]} 4... g6 {[%clk 0:02:52.8]} 5. d4 {[%clk 0:02:53.2]} 5...
Bg7 {[%clk 0:02:53.4]} 6. d5 {[%clk 0:02:45.8]} 6... exd5 {[%clk 0:02:50.8]} 7.
exd5 {[%clk 0:02:46.7]} 7... Nd4 {[%clk 0:02:51.3]} 8. d6 {[%clk 0:02:24.1]}
8... Nxf3+ {[%clk 0:02:27.6]} 9. Qxf3 {[%clk 0:02:22.2]} 9... Qf6 {[%clk
0:02:28.5]} 10. Qe3+ {[%clk 0:01:59.9]} 10... Qe5 {[%clk 0:02:27.3]} 11. Nc3
{[%clk 0:01:57.6]} 11... Qxe3+ {[%clk 0:01:59.2]} 12. Bxe3 {[%clk 0:01:58.5]}
12... Bxc3+ {[%clk 0:01:59.4]} 13. bxc3 {[%clk 0:01:57.9]} 13... b6 {[%clk
0:01:58.3]} 14. Bg2 {[%clk 0:01:48.3]} 14... Rb8 {[%clk 0:01:58.2]} 15. a4
{[%clk 0:01:44.4]} 15... Bb7 {[%clk 0:01:57.7]} 16. Bxb7 {[%clk 0:01:39.9]}
16... Rxb7 {[%clk 0:01:57.9]} 17. Ke2 {[%clk 0:01:38]} 17... Nf6 {[%clk
0:01:57.5]} 18. Rhb1 {[%clk 0:01:33.5]} 18... Ne4 {[%clk 0:01:55.6]} 19. Ra3
{[%clk 0:01:24.3]} 19... Nxd6 {[%clk 0:01:55.3]} 20. Kd3 {[%clk 0:01:21.7]}
20... O-O {[%clk 0:01:26.7]} 21. a5 {[%clk 0:01:21.5]} 21... Nf5 {[%clk
0:01:22.3]} 22. Bxc5 {[%clk 0:01:17.6]} 22... Rc8 {[%clk 0:01:14]} 23. axb6
{[%clk 0:01:14.7]} 23... axb6 {[%clk 0:01:02.4]} 24. Rxb6 {[%clk 0:01:11]} 24...
Rbc7 {[%clk 0:00:53.9]} 25. Bb4 {[%clk 0:01:01.5]} 25... d5 {[%clk 0:00:43.9]}
26. Ra5 {[%clk 0:00:48.6]} 26... d4 {[%clk 0:00:41.7]} 27. cxd4 {[%clk
0:00:45.9]} 27... Rxc2 {[%clk 0:00:37.4]} 28. g4 {[%clk 0:00:36]} 28... Ng7
{[%clk 0:00:22.8]} 29. Rc5 {[%clk 0:00:29.4]} 29... R2xc5 {[%clk 0:00:15.4]} 30.
dxc5 {[%clk 0:00:30.3]} 30... Ne6 {[%clk 0:00:15.5]} 31. Kc4 {[%clk 0:00:25.4]}
31... h5 {[%clk 0:00:11.9]} 32. h3 {[%clk 0:00:25]} 32... hxg4 {[%clk
0:00:11.9]} 33. hxg4 {[%clk 0:00:25.9]} 33... Kg7 {[%clk 0:00:11.2]} 34. Kb5
{[%clk 0:00:25.7]} 34... Kf6 {[%clk 0:00:10.8]} 35. Bd2 {[%clk 0:00:24.6]} 35...
Ke5 {[%clk 0:00:10.1]} 36. Be3 {[%clk 0:00:23.5]} 36... f5 {[%clk 0:00:10.2]}
37. gxf5 {[%clk 0:00:22.5]} 37... gxf5 {[%clk 0:00:10.4]} 38. c6 {[%clk
0:00:20.5]} 38... f4 {[%clk 0:00:10.6]} 39. Bd2 {[%clk 0:00:20.7]} 39... Nd4+
{[%clk 0:00:10.7]} 40. Ka6 {[%clk 0:00:14.8]} 40... Rxc6 {[%clk 0:00:09.5]} 41.
Bc3 {[%clk 0:00:14.5]} 41... Rxb6+ {[%clk 0:00:08.9]} 42. Kxb6 {[%clk
0:00:14.9]} 42... Ke4 {[%clk 0:00:09.8]} 43. Kc5 {[%clk 0:00:12.2]} 43... Ne6+
{[%clk 0:00:08.7]} 44. Kd6 {[%clk 0:00:10.7]} 44... Ng5 {[%clk 0:00:09.2]} 45.
Ke7 {[%clk 0:00:10]} 45... Nh3 {[%clk 0:00:09.7]} 46. Be1 {[%clk 0:00:09.1]}
46... Kd3 {[%clk 0:00:09.8]} 47. Kf6 {[%clk 0:00:08.7]} 47... Ke2 {[%clk
0:00:10.3]} 48. Bb4 {[%clk 0:00:08.1]} 48... Kxf2 {[%clk 0:00:10.4]} 49. Kf5
{[%clk 0:00:08.8]} 49... Ke2 {[%clk 0:00:09.7]} 50. Kg4 {[%clk 0:00:08]} 50...
f3 {[%clk 0:00:10.1]} 51. Bc5 {[%clk 0:00:07.9]} 51... Nf2+ {[%clk 0:00:03.3]}
52. Kg3 {[%clk 0:00:06.5]} 52... Ne4+ {[%clk 0:00:03.1]} 0-1

[Event "Early-Titled-Tuesday-Blitz-May-14-2024"]
[Site "Chess.com"]
[Date "2024.05.14"]
[Round "4"]
[White "Galileo22"]
[Black "emeli_chess"]
[Result "1-0"]
[WhiteElo "2658"]
[BlackElo "2446"]
[TimeControl "180+1"]
[EndTime "8:41:47 PDT"]
[Termination "Galileo22 won by resignation"]

1. Nf3 {[%clk 0:03:00.4]} 1... d5 {[%clk 0:02:57.6]} 2. b3 {[%clk 0:03:00.9]}
2... Bg4 {[%clk 0:02:56.4]} 3. e3 {[%clk 0:02:59.1]} 3... e5 {[%clk 0:02:51.1]}
4. h3 {[%clk 0:02:58.7]} 4... Bxf3 {[%clk 0:02:50.5]} 5. Qxf3 {[%clk 0:02:59.6]}
5... c6 {[%clk 0:02:50.3]} 6. Bb2 {[%clk 0:02:59.3]} 6... Nd7 {[%clk 0:02:49.8]}
7. Qg3 {[%clk 0:02:58.2]} 7... Ngf6 {[%clk 0:02:24]} 8. Bxe5 {[%clk 0:02:35.5]}
8... Nxe5 {[%clk 0:02:20.6]} 9. Qxe5+ {[%clk 0:02:34.9]} 9... Be7 {[%clk
0:02:20.9]} 10. Bd3 {[%clk 0:02:27.5]} 10... O-O {[%clk 0:02:20.7]} 11. O-O
{[%clk 0:02:24.5]} 11... Re8 {[%clk 0:02:20.1]} 12. Qf5 {[%clk 0:02:23]} 12...
g6 {[%clk 0:02:19.4]} 13. Qf3 {[%clk 0:02:22.4]} 13... Ne4 {[%clk 0:02:16.4]}
14. Bxe4 {[%clk 0:02:11.5]} 14... dxe4 {[%clk 0:02:15.6]} 15. Qe2 {[%clk
0:02:12.1]} 15... Bf6 {[%clk 0:02:07.2]} 16. Nc3 {[%clk 0:02:06.7]} 16... b5
{[%clk 0:01:45.6]} 17. Rad1 {[%clk 0:02:04.8]} 17... Qd6 {[%clk 0:01:40.1]} 18.
Qg4 {[%clk 0:01:49.9]} 18... Bxc3 {[%clk 0:01:34.6]} 19. dxc3 {[%clk 0:01:50.8]}
19... Qe5 {[%clk 0:01:34.4]} 20. Rd7 {[%clk 0:01:46.7]} 20... Rad8 {[%clk
0:01:22.2]} 21. Rfd1 {[%clk 0:01:46]} 21... Rxd7 {[%clk 0:01:20.1]} 22. Qxd7
{[%clk 0:01:43.5]} 22... Re6 {[%clk 0:01:17.1]} 23. Qd8+ {[%clk 0:01:41.8]}
23... Kg7 {[%clk 0:01:16.9]} 24. Qd4 {[%clk 0:01:42.7]} 24... Qxd4 {[%clk
0:01:10.1]} 25. cxd4 {[%clk 0:01:42.4]} 25... b4 {[%clk 0:01:02.4]} 26. a3
{[%clk 0:01:15.7]} 26... bxa3 {[%clk 0:00:51.2]} 27. Ra1 {[%clk 0:01:15.5]}
27... c5 {[%clk 0:00:37.1]} 28. Rxa3 {[%clk 0:01:09.4]} 28... cxd4 {[%clk
0:00:35.2]} 29. exd4 {[%clk 0:01:10.3]} 29... e3 {[%clk 0:00:34]} 30. fxe3
{[%clk 0:01:05.5]} 30... Rxe3 {[%clk 0:00:33.5]} 31. Rxa7 {[%clk 0:01:02.1]}
31... Re2 {[%clk 0:00:28.1]} 32. c4 {[%clk 0:00:59.4]} 32... Rd2 {[%clk
0:00:26.6]} 33. d5 {[%clk 0:00:58.9]} 33... Kf6 {[%clk 0:00:25.7]} 34. Rc7
{[%clk 0:00:44.7]} 34... Rb2 {[%clk 0:00:19.8]} 35. Rb7 {[%clk 0:00:39.4]} 35...
Ke5 {[%clk 0:00:19.9]} 36. Rxf7 {[%clk 0:00:35.2]} 36... Rxb3 {[%clk 0:00:19.5]}
37. Rxh7 {[%clk 0:00:34.9]} 37... Rc3 {[%clk 0:00:19.6]} 38. Rc7 {[%clk
0:00:33.5]} 38... Rc2 {[%clk 0:00:19.6]} 39. Kh2 {[%clk 0:00:27.8]} 39... Rc3
{[%clk 0:00:19.6]} 40. Rc6 {[%clk 0:00:21.8]} 40... g5 {[%clk 0:00:19.5]} 41.
Rc8 {[%clk 0:00:15.8]} 41... Kf4 {[%clk 0:00:17.3]} 42. d6 {[%clk 0:00:14.7]}
42... Rd3 {[%clk 0:00:17.1]} 43. c5 {[%clk 0:00:14.7]} 43... Ke5 {[%clk
0:00:17.4]} 44. Rg8 {[%clk 0:00:14.1]} 44... Ke6 {[%clk 0:00:16.4]} 45. Rxg5
{[%clk 0:00:13.6]} 45... Kd7 {[%clk 0:00:16.6]} 46. Rg3 {[%clk 0:00:13.3]} 46...
Rd1 {[%clk 0:00:16]} 47. Rc3 {[%clk 0:00:13.3]} 47... Kc6 {[%clk 0:00:14.8]} 48.
h4 {[%clk 0:00:13.1]} 48... Rd4 {[%clk 0:00:14.2]} 49. Kh3 {[%clk 0:00:12.8]}
49... Re4 {[%clk 0:00:13.2]} 50. g3 {[%clk 0:00:12.5]} 50... Rd4 {[%clk
0:00:12.7]} 51. h5 {[%clk 0:00:12.6]} 51... Re4 {[%clk 0:00:11]} 52. g4 {[%clk
0:00:12.7]} 52... Rd4 {[%clk 0:00:08.8]} 53. Kh4 {[%clk 0:00:12.5]} 53... Kd7
{[%clk 0:00:08.8]} 54. h6 {[%clk 0:00:12]} 54... Kc6 {[%clk 0:00:08.1]} 55. h7
{[%clk 0:00:10.8]} 1-0

[Event "Early-Titled-Tuesday-Blitz-May-14-2024"]
[Site "Chess.com"]
[Date "2024.05.14"]
[Round "4"]
[White "urano56"]
[Black "Witik"]
[Result "0-1"]
[WhiteElo "2413"]
[BlackElo "2766"]
[TimeControl "180+1"]
[EndTime "8:41:48 PDT"]
[Termination "Witik won by resignation"]

1. e4 {[%clk 0:03:00.9]} 1... e5 {[%clk 0:02:58.7]} 2. Nf3 {[%clk 0:03:00.4]}
2... Nc6 {[%clk 0:02:58.2]} 3. Bc4 {[%clk 0:02:59.7]} 3... Nf6 {[%clk
0:02:58.3]} 4. d3 {[%clk 0:02:58.2]} 4... Bc5 {[%clk 0:02:56.8]} 5. O-O {[%clk
0:02:57.8]} 5... d6 {[%clk 0:02:56.3]} 6. c3 {[%clk 0:02:58.1]} 6... a6 {[%clk
0:02:54]} 7. Nbd2 {[%clk 0:02:56.1]} 7... b5 {[%clk 0:02:44.2]} 8. Bb3 {[%clk
0:02:55.6]} 8... O-O {[%clk 0:02:27.5]} 9. Re1 {[%clk 0:02:54.7]} 9... Bb6
{[%clk 0:02:10.6]} 10. Nf1 {[%clk 0:02:54.1]} 10... Ne7 {[%clk 0:02:08.1]} 11.
Bg5 {[%clk 0:02:52.3]} 11... Ng6 {[%clk 0:02:06.3]} 12. Ng3 {[%clk 0:02:46.4]}
12... h6 {[%clk 0:02:05.6]} 13. Be3 {[%clk 0:02:44.3]} 13... Bxe3 {[%clk
0:02:03.3]} 14. fxe3 {[%clk 0:02:41.9]} 14... Re8 {[%clk 0:01:45.7]} 15. Rf1
{[%clk 0:02:36.4]} 15... Be6 {[%clk 0:01:40.4]} 16. Nf5 {[%clk 0:02:24.7]} 16...
d5 {[%clk 0:01:28.7]} 17. Bc2 {[%clk 0:02:09.9]} 17... c6 {[%clk 0:01:09.9]} 18.
Qe1 {[%clk 0:02:09.2]} 18... Qb6 {[%clk 0:01:04.9]} 19. Kh1 {[%clk 0:02:03.5]}
19... Rad8 {[%clk 0:01:03.4]} 20. N3h4 {[%clk 0:01:36.7]} 20... Nxh4 {[%clk
0:00:43.9]} 21. Qxh4 {[%clk 0:01:35.2]} 21... Bxf5 {[%clk 0:00:43.5]} 22. Rxf5
{[%clk 0:01:29.8]} 22... dxe4 {[%clk 0:00:26.2]} 23. d4 {[%clk 0:01:13]} 23...
exd4 {[%clk 0:00:24]} 24. exd4 {[%clk 0:01:12.9]} 24... c5 {[%clk 0:00:17.9]}
25. Rxc5 {[%clk 0:00:58]} 25... b4 {[%clk 0:00:18.1]} 26. Rf1 {[%clk 0:00:51.7]}
26... bxc3 {[%clk 0:00:17.8]} 27. bxc3 {[%clk 0:00:51.6]} 27... e3 {[%clk
0:00:15]} 28. Bd3 {[%clk 0:00:45.8]} 28... Qe6 {[%clk 0:00:12.2]} 29. a4 {[%clk
0:00:37.5]} 29... Ne4 {[%clk 0:00:11.6]} 30. Bxe4 {[%clk 0:00:30]} 30... Qxe4
{[%clk 0:00:11.7]} 31. Qxe4 {[%clk 0:00:22.2]} 31... Rxe4 {[%clk 0:00:12.6]} 32.
Re1 {[%clk 0:00:22.8]} 32... Rb8 {[%clk 0:00:12.7]} 33. Re5 {[%clk 0:00:19.6]}
33... Rxe5 {[%clk 0:00:11.3]} 34. dxe5 {[%clk 0:00:20.1]} 34... Rb3 {[%clk
0:00:12]} 35. Rc1 {[%clk 0:00:16.9]} 35... e2 {[%clk 0:00:09.8]} 36. Kg1 {[%clk
0:00:16.7]} 36... Rxc3 {[%clk 0:00:10.4]} 37. Re1 {[%clk 0:00:14.7]} 37... Re3
{[%clk 0:00:10.4]} 38. Kf2 {[%clk 0:00:15]} 38... Rxe5 {[%clk 0:00:11]} 39. Kf3
{[%clk 0:00:12.2]} 39... Kf8 {[%clk 0:00:10.8]} 40. Kf4 {[%clk 0:00:12.7]} 40...
f6 {[%clk 0:00:10.3]} 41. g3 {[%clk 0:00:13.1]} 41... a5 {[%clk 0:00:10.6]} 42.
Kf3 {[%clk 0:00:13.5]} 42... Ke7 {[%clk 0:00:10.2]} 43. h4 {[%clk 0:00:14.1]}
43... Ke6 {[%clk 0:00:10.6]} 44. Kf2 {[%clk 0:00:14.7]} 44... h5 {[%clk
0:00:11.1]} 45. Kf3 {[%clk 0:00:14.8]} 45... Kf5 {[%clk 0:00:11.7]} 46. Kf2
{[%clk 0:00:13.2]} 46... Kg4 {[%clk 0:00:12.1]} 47. Kg2 {[%clk 0:00:13.8]} 47...
Re3 {[%clk 0:00:12.4]} 48. Kf2 {[%clk 0:00:14.2]} 48... Re4 {[%clk 0:00:11.1]}
49. Kg2 {[%clk 0:00:14.3]} 49... g5 {[%clk 0:00:11.6]} 50. hxg5 {[%clk 0:00:14]}
50... fxg5 {[%clk 0:00:12.2]} 51. Kf2 {[%clk 0:00:14.6]} 51... Re5 {[%clk
0:00:12]} 52. Kg2 {[%clk 0:00:13.6]} 52... Kf5 {[%clk 0:00:11.3]} 53. Kf2 {[%clk
0:00:13]} 53... Re4 {[%clk 0:00:11.9]} 54. Kf3 {[%clk 0:00:12.7]} 54... Ke5
{[%clk 0:00:11.9]} 55. Kf2 {[%clk 0:00:12.5]} 55... g4 {[%clk 0:00:12.4]} 56.
Kg2 {[%clk 0:00:12.4]} 56... Kd4 {[%clk 0:00:13]} 57. Kf2 {[%clk 0:00:13]} 57...
Kd3 {[%clk 0:00:13.4]} 58. Kg2 {[%clk 0:00:13]} 58... Kd2 {[%clk 0:00:13.6]} 59.
Kf2 {[%clk 0:00:13.7]} 59... Re6 {[%clk 0:00:13.7]} 0-1

[Event "Early-Titled-Tuesday-Blitz-May-14-2024"]
[Site "Chess.com"]
[Date "2024.05.14"]
[Round "4"]
[White "FollowRivers"]
[Black "Mikasinski"]
[Result "1-0"]
[WhiteElo "2482"]
[BlackElo "2664"]
[TimeControl "180+1"]
[EndTime "8:41:49 PDT"]
[Termination "FollowRivers won on time"]

1. Nf3 {[%clk 0:03:00.9]} 1... Nf6 {[%clk 0:02:59.3]} 2. b3 {[%clk 0:03:00.2]}
2... d6 {[%clk 0:02:57.3]} 3. d4 {[%clk 0:02:59.4]} 3... g6 {[%clk 0:02:52.3]}
4. Bb2 {[%clk 0:02:59.4]} 4... Bg7 {[%clk 0:02:52.8]} 5. e3 {[%clk 0:03:00.1]}
5... O-O {[%clk 0:02:53.3]} 6. Be2 {[%clk 0:03:00.8]} 6... e5 {[%clk 0:02:53.8]}
7. dxe5 {[%clk 0:03:00.3]} 7... Nfd7 {[%clk 0:02:54]} 8. c4 {[%clk 0:03:00.3]}
8... dxe5 {[%clk 0:02:54.6]} 9. Nc3 {[%clk 0:03:00.5]} 9... e4 {[%clk
0:02:55.3]} 10. Nd4 {[%clk 0:02:52.5]} 10... Re8 {[%clk 0:02:46.6]} 11. Qc2
{[%clk 0:02:50.9]} 11... Bxd4 {[%clk 0:02:41.5]} 12. exd4 {[%clk 0:02:51.8]}
12... Nc6 {[%clk 0:02:42.2]} 13. Rd1 {[%clk 0:02:48]} 13... Nb4 {[%clk 0:02:40]}
14. Qb1 {[%clk 0:02:17.2]} 14... Nd3+ {[%clk 0:02:32.9]} 15. Bxd3 {[%clk
0:02:16.8]} 15... exd3+ {[%clk 0:02:33.6]} 16. Kf1 {[%clk 0:02:17.6]} 16... Nf6
{[%clk 0:02:04.3]} 17. Qxd3 {[%clk 0:02:12.5]} 17... Bf5 {[%clk 0:02:01.9]} 18.
Qd2 {[%clk 0:02:09.1]} 18... Qd7 {[%clk 0:01:36.2]} 19. h3 {[%clk 0:02:09]}
19... Rad8 {[%clk 0:01:32.4]} 20. g4 {[%clk 0:01:46.1]} 20... Be4 {[%clk
0:01:31.8]} 21. Nxe4 {[%clk 0:01:36.7]} 21... Nxe4 {[%clk 0:01:30.4]} 22. Qf4
{[%clk 0:01:30.7]} 22... Qc6 {[%clk 0:01:25.7]} 23. d5 {[%clk 0:01:26.2]} 23...
Qa6 {[%clk 0:01:23.8]} 24. a4 {[%clk 0:01:04.7]} 24... Qb6 {[%clk 0:01:21]} 25.
Rd3 {[%clk 0:00:56.2]} 25... Qd6 {[%clk 0:00:38.3]} 26. Qh6 {[%clk 0:00:35]}
26... f6 {[%clk 0:00:34.1]} 27. Kg2 {[%clk 0:00:35.5]} 27... Nc5 {[%clk
0:00:27.5]} 28. Rf3 {[%clk 0:00:35.3]} 28... Nd7 {[%clk 0:00:27.2]} 29. g5
{[%clk 0:00:24.4]} 29... Qf8 {[%clk 0:00:20.1]} 30. Qxf8+ {[%clk 0:00:22.6]}
30... Rxf8 {[%clk 0:00:16.3]} 31. gxf6 {[%clk 0:00:22]} 31... Kf7 {[%clk
0:00:14.1]} 32. Re1 {[%clk 0:00:22.3]} 32... Rfe8 {[%clk 0:00:14.1]} 33. Rfe3
{[%clk 0:00:18.9]} 33... Rxe3 {[%clk 0:00:14]} 34. Rxe3 {[%clk 0:00:19.8]} 34...
Re8 {[%clk 0:00:14.5]} 35. Kf3 {[%clk 0:00:14.8]} 35... Nc5 {[%clk 0:00:12.2]}
36. Rxe8 {[%clk 0:00:09.6]} 36... Kxe8 {[%clk 0:00:12.1]} 37. Be5 {[%clk
0:00:10.5]} 37... c6 {[%clk 0:00:05.4]} 38. dxc6 {[%clk 0:00:10.7]} 38... bxc6
{[%clk 0:00:05.3]} 39. Bd4 {[%clk 0:00:11.4]} 39... Nxb3 {[%clk 0:00:04.7]} 40.
Bxa7 {[%clk 0:00:12.1]} 40... Nd2+ {[%clk 0:00:05.2]} 41. Kf4 {[%clk 0:00:09.9]}
41... Nxc4 {[%clk 0:00:05.3]} 42. Kg5 {[%clk 0:00:10.1]} 42... Kf7 {[%clk
0:00:05.5]} 43. Bd4 {[%clk 0:00:08]} 43... Nd2 {[%clk 0:00:03.6]} 44. Kh6 {[%clk
0:00:05.6]} 44... Nf3 {[%clk 0:00:02]} 45. Bc3 {[%clk 0:00:03.8]} 45... Ke6
{[%clk 0:00:01.2]} 46. Kg7 {[%clk 0:00:03.2]} 46... Ng5 {[%clk 0:00:00.8]} 47.
h4 {[%clk 0:00:03.1]} 47... Nf7 {[%clk 0:00:01.6]} 48. a5 {[%clk 0:00:03.6]}
48... c5 {[%clk 0:00:02]} 49. a6 {[%clk 0:00:03.2]} 49... Nd6 {[%clk 0:00:02.5]}
50. a7 {[%clk 0:00:03.5]} 50... Ne8+ {[%clk 0:00:02.3]} 51. Kf8 {[%clk
0:00:03.7]} 51... Nc7 {[%clk 0:00:03.2]} 52. f7 {[%clk 0:00:03.5]} 52... Kd7
{[%clk 0:00:01.5]} 53. Kg8 {[%clk 0:00:03.7]} 1-0